[Event "Late-Titled-Tuesday-Blitz-October-03-2023"]
[Site "Chess.com"]
[Date "2023.10.03"]
[Round "9"]
[White "chosenpr"]
[Black "shirovin"]
[Result "1-0"]
[WhiteElo "2247"]
[BlackElo "2070"]
[TimeControl "180+1"]
[EndTime "15:39:56 PDT"]
[Termination "chosenpr won by checkmate"]

1. e4 {[%clk 0:02:52.7]} 1... c5 {[%clk 0:02:59.4]} 2. Nf3 {[%clk 0:02:52.5]}
2... d6 {[%clk 0:02:59.9]} 3. d4 {[%clk 0:02:50.5]} 3... cxd4 {[%clk 0:03:00.5]}
4. Qxd4 {[%clk 0:02:51]} 4... Bd7 {[%clk 0:02:57.1]} 5. c4 {[%clk 0:02:32.6]}
5... Nc6 {[%clk 0:02:56.4]} 6. Qd2 {[%clk 0:02:20.4]} 6... Nf6 {[%clk
0:02:56.3]} 7. Nc3 {[%clk 0:02:19.4]} 7... g6 {[%clk 0:02:56.7]} 8. Be2 {[%clk
0:02:19.2]} 8... Bg7 {[%clk 0:02:57.3]} 9. O-O {[%clk 0:02:19.8]} 9... O-O
{[%clk 0:02:57.6]} 10. Rb1 {[%clk 0:02:20.1]} 10... a6 {[%clk 0:02:56.4]} 11. b4
{[%clk 0:02:19.9]} 11... Rc8 {[%clk 0:02:49.8]} 12. a3 {[%clk 0:02:16.4]} 12...
Bg4 {[%clk 0:02:42]} 13. Nd4 {[%clk 0:02:03.6]} 13... Nxd4 {[%clk 0:02:36.5]}
14. Qxd4 {[%clk 0:02:02.5]} 14... Nd7 {[%clk 0:02:27.3]} 15. Qe3 {[%clk
0:01:33.2]} 15... Bxe2 {[%clk 0:02:22.6]} 16. Nxe2 {[%clk 0:01:31.9]} 16... Rxc4
{[%clk 0:02:21.5]} 17. Bb2 {[%clk 0:01:32.2]} 17... Qc7 {[%clk 0:02:11.1]} 18.
Rfc1 {[%clk 0:01:27.7]} 18... Rc8 {[%clk 0:02:09]} 19. Rxc4 {[%clk 0:01:27.6]}
19... Qxc4 {[%clk 0:02:03.5]} 20. Rc1 {[%clk 0:01:27.8]} 20... Qe6 {[%clk
0:01:56.1]} 21. Rxc8+ {[%clk 0:01:26.1]} 21... Bf8 {[%clk 0:01:56.4]} 22. Qh6
{[%clk 0:01:23]} 22... f6 {[%clk 0:01:47]} 23. Qe3 {[%clk 0:01:01.6]} 23... Qa2
{[%clk 0:01:41.2]} 24. Qc3 {[%clk 0:00:55.3]} 24... Qb1+ {[%clk 0:01:36.3]} 25.
Nc1 {[%clk 0:00:53.3]} 25... Qxe4 {[%clk 0:01:35]} 26. h3 {[%clk 0:00:53.8]}
26... Ne5 {[%clk 0:01:30]} 27. Qe3 {[%clk 0:00:34.4]} 27... Qf5 {[%clk
0:01:26.9]} 28. Rb8 {[%clk 0:00:28.2]} 28... Qc2 {[%clk 0:01:21.2]} 29. Qc3
{[%clk 0:00:18.3]} 29... Qd1+ {[%clk 0:01:20.1]} 30. Kh2 {[%clk 0:00:18.5]}
30... b5 {[%clk 0:01:15.6]} 31. Qc8 {[%clk 0:00:18.5]} 31... Kf7 {[%clk
0:00:52.1]} 32. Qxf8+ {[%clk 0:00:16.9]} 32... Ke6 {[%clk 0:00:52.6]} 33. Qc8+
{[%clk 0:00:16.2]} 33... Kf7 {[%clk 0:00:52.5]} 34. Qc3 {[%clk 0:00:13.4]} 34...
d5 {[%clk 0:00:47.5]} 35. Qc8 {[%clk 0:00:12.9]} 35... Qd2 {[%clk 0:00:42.4]}
36. Qg8# {[%clk 0:00:13.2]} 1-0

[Event "Late-Titled-Tuesday-Blitz-October-03-2023"]
[Site "Chess.com"]
[Date "2023.10.03"]
[Round "9"]
[White "ozates"]
[Black "rdarruda"]
[Result "1-0"]
[WhiteElo "2641"]
[BlackElo "2482"]
[TimeControl "180+1"]
[EndTime "15:39:58 PDT"]
[Termination "ozates won by resignation"]

1. c4 {[%clk 0:02:54.5]} 1... Nf6 {[%clk 0:02:32.2]} 2. Nc3 {[%clk 0:02:53.2]}
2... e5 {[%clk 0:02:31.6]} 3. g3 {[%clk 0:02:53.3]} 3... Nc6 {[%clk 0:02:31.2]}
4. Bg2 {[%clk 0:02:53.4]} 4... d6 {[%clk 0:02:32.1]} 5. e4 {[%clk 0:02:53.3]}
5... Be7 {[%clk 0:02:32.3]} 6. Nge2 {[%clk 0:02:53.9]} 6... O-O {[%clk
0:02:31.5]} 7. O-O {[%clk 0:02:54.4]} 7... Be6 {[%clk 0:02:31.5]} 8. d3 {[%clk
0:02:54.1]} 8... Qd7 {[%clk 0:02:31]} 9. f4 {[%clk 0:02:52.9]} 9... Bh3 {[%clk
0:02:29.9]} 10. f5 {[%clk 0:02:52.7]} 10... Bxg2 {[%clk 0:02:29.2]} 11. Kxg2
{[%clk 0:02:53.6]} 11... Nd4 {[%clk 0:02:27.2]} 12. h3 {[%clk 0:02:49]} 12...
Nxe2 {[%clk 0:02:25.1]} 13. Qxe2 {[%clk 0:02:47.2]} 13... c6 {[%clk 0:02:25]}
14. g4 {[%clk 0:02:47.1]} 14... h6 {[%clk 0:02:24.2]} 15. h4 {[%clk 0:02:45.4]}
15... Nh7 {[%clk 0:02:23.1]} 16. g5 {[%clk 0:02:32.6]} 16... hxg5 {[%clk
0:02:21.6]} 17. hxg5 {[%clk 0:02:33.1]} 17... Bxg5 {[%clk 0:02:20.6]} 18. Rh1
{[%clk 0:02:32.2]} 18... Bxc1 {[%clk 0:02:19.3]} 19. Raxc1 {[%clk 0:02:23.2]}
19... Ng5 {[%clk 0:02:18.5]} 20. Rcg1 {[%clk 0:02:09.8]} 20... f6 {[%clk
0:02:17.5]} 21. Qh5 {[%clk 0:02:08.1]} 21... Qe8 {[%clk 0:02:11.7]} 22. Qh4
{[%clk 0:01:56.5]} 22... Kf7 {[%clk 0:02:08.5]} 23. Kf2 {[%clk 0:01:51.2]} 23...
Rh8 {[%clk 0:02:05.5]} 24. Qg4 {[%clk 0:01:51.7]} 24... Qd7 {[%clk 0:01:59.8]}
25. Rh5 {[%clk 0:01:48.8]} 25... Rag8 {[%clk 0:01:53.9]} 26. Ne2 {[%clk
0:01:25.3]} 26... Rxh5 {[%clk 0:01:51.2]} 27. Qxh5+ {[%clk 0:01:25]} 27... Kf8
{[%clk 0:01:51.8]} 28. Rg4 {[%clk 0:01:04.3]} 28... Qf7 {[%clk 0:01:49.9]} 29.
Qh4 {[%clk 0:01:00.6]} 29... d5 {[%clk 0:01:49.2]} 30. exd5 {[%clk 0:00:57.7]}
30... cxd5 {[%clk 0:01:48.8]} 31. Nc3 {[%clk 0:00:58.3]} 31... dxc4 {[%clk
0:01:42.5]} 32. dxc4 {[%clk 0:00:59.2]} 32... e4 {[%clk 0:01:39.2]} 33. Nxe4
{[%clk 0:00:56.5]} 33... Qxc4 {[%clk 0:01:33.2]} 34. Nxg5 {[%clk 0:00:56.4]}
34... Qc2+ {[%clk 0:01:31.5]} 35. Kg1 {[%clk 0:00:56.2]} 35... fxg5 {[%clk
0:01:31.5]} 36. Qxg5 {[%clk 0:00:49.5]} 36... Qb1+ {[%clk 0:01:24.9]} 37. Kg2
{[%clk 0:00:45.3]} 37... Qxb2+ {[%clk 0:01:25.3]} 38. Kf3 {[%clk 0:00:41.2]}
38... Qc3+ {[%clk 0:01:23.2]} 39. Ke4 {[%clk 0:00:38.3]} 39... Qc6+ {[%clk
0:01:16.8]} 40. Kd3 {[%clk 0:00:35.4]} 40... Kf7 {[%clk 0:01:16.5]} 41. Qh5+
{[%clk 0:00:34.2]} 41... Ke7 {[%clk 0:01:08.5]} 42. Re4+ {[%clk 0:00:27.4]}
42... Kd8 {[%clk 0:01:08.1]} 43. Qf7 {[%clk 0:00:14.6]} 43... Qd7+ {[%clk
0:01:06.4]} 44. Rd4 {[%clk 0:00:14.7]} 1-0

[Event "Late-Titled-Tuesday-Blitz-October-03-2023"]
[Site "Chess.com"]
[Date "2023.10.03"]
[Round "9"]
[White "Metadast"]
[Black "Quattroporte300"]
[Result "0-1"]
[WhiteElo "2521"]
[BlackElo "2383"]
[TimeControl "180+1"]
[EndTime "15:40:02 PDT"]
[Termination "Quattroporte300 won on time"]

1. e4 {[%clk 0:03:00.6]} 1... c5 {[%clk 0:02:56.6]} 2. a3 {[%clk 0:03:00.3]}
2... Nc6 {[%clk 0:02:56]} 3. b4 {[%clk 0:03:00.4]} 3... cxb4 {[%clk 0:02:56.5]}
4. axb4 {[%clk 0:03:01.3]} 4... Nxb4 {[%clk 0:02:56.9]} 5. c3 {[%clk 0:03:01.8]}
5... Nc6 {[%clk 0:02:56.7]} 6. d4 {[%clk 0:03:02.7]} 6... d5 {[%clk 0:02:57.1]}
7. exd5 {[%clk 0:03:03.6]} 7... Qxd5 {[%clk 0:02:54.1]} 8. Na3 {[%clk
0:03:03.1]} 8... Qd8 {[%clk 0:02:45.4]} 9. Nf3 {[%clk 0:02:48.2]} 9... Nf6
{[%clk 0:02:42.9]} 10. Nb5 {[%clk 0:02:26.8]} 10... Bg4 {[%clk 0:02:35.9]} 11.
d5 {[%clk 0:02:26]} 11... Ne5 {[%clk 0:02:28.9]} 12. Bf4 {[%clk 0:02:21]} 12...
Nfd7 {[%clk 0:02:17.5]} 13. Be2 {[%clk 0:01:54.4]} 13... Bxf3 {[%clk 0:02:11.9]}
14. Bxf3 {[%clk 0:01:25.4]} 14... g6 {[%clk 0:02:12]} 15. d6 {[%clk 0:00:42]}
15... exd6 {[%clk 0:02:05]} 16. Bxb7 {[%clk 0:00:25.8]} 16... Rb8 {[%clk
0:01:59.8]} 17. Nxd6+ {[%clk 0:00:19.9]} 17... Bxd6 {[%clk 0:01:58.4]} 18. Qxd6
{[%clk 0:00:20.8]} 18... Rxb7 {[%clk 0:01:48.7]} 19. Rd1 {[%clk 0:00:16.2]}
19... Qe7 {[%clk 0:01:41.3]} 20. Qd5 {[%clk 0:00:02.9]} 20... Nd3+ {[%clk
0:00:58.4]} 21. Kd2 {[%clk 0:00:02.6]} 21... Nxf4 {[%clk 0:00:50]} 22. Qxb7
{[%clk 0:00:01.6]} 22... O-O {[%clk 0:00:48.3]} 23. Rhe1 {[%clk 0:00:01.4]}
23... Qd6+ {[%clk 0:00:41.2]} 24. Kc2 {[%clk 0:00:01.6]} 24... Nc5 {[%clk
0:00:30.2]} 0-1

[Event "Late-Titled-Tuesday-Blitz-October-03-2023"]
[Site "Chess.com"]
[Date "2023.10.03"]
[Round "9"]
[White "Pomberito2"]
[Black "Sanyura"]
[Result "1-0"]
[WhiteElo "2493"]
[BlackElo "2641"]
[TimeControl "180+1"]
[EndTime "15:40:14 PDT"]
[Termination "Pomberito2 won by checkmate"]

1. d4 {[%clk 0:02:57.8]} 1... Nf6 {[%clk 0:02:29.1]} 2. Nf3 {[%clk 0:02:56.6]}
2... g6 {[%clk 0:02:28.7]} 3. Bg5 {[%clk 0:02:55.5]} 3... Bg7 {[%clk 0:02:28]}
4. e3 {[%clk 0:02:53.2]} 4... O-O {[%clk 0:02:27.4]} 5. Nbd2 {[%clk 0:02:52.2]}
5... d6 {[%clk 0:02:25.6]} 6. c3 {[%clk 0:02:52]} 6... c5 {[%clk 0:02:19.2]} 7.
Bd3 {[%clk 0:02:51]} 7... Nc6 {[%clk 0:02:19.6]} 8. Qe2 {[%clk 0:02:48]} 8...
Bg4 {[%clk 0:02:10.6]} 9. h3 {[%clk 0:02:46.6]} 9... Bxf3 {[%clk 0:02:09.2]} 10.
Nxf3 {[%clk 0:02:45.1]} 10... e5 {[%clk 0:02:04.9]} 11. dxe5 {[%clk 0:02:36.5]}
11... dxe5 {[%clk 0:02:05.8]} 12. e4 {[%clk 0:02:34.2]} 12... Qc7 {[%clk
0:01:57.9]} 13. Bxf6 {[%clk 0:02:20.2]} 13... Bxf6 {[%clk 0:01:57.3]} 14. Bc4
{[%clk 0:02:18.6]} 14... h6 {[%clk 0:01:42.9]} 15. O-O {[%clk 0:02:14.8]} 15...
Kh7 {[%clk 0:01:40.2]} 16. Rfd1 {[%clk 0:02:13.9]} 16... Rad8 {[%clk 0:01:28.6]}
17. Nh2 {[%clk 0:02:06.3]} 17... Bg7 {[%clk 0:01:21.8]} 18. Nf1 {[%clk
0:02:05.1]} 18... f5 {[%clk 0:01:14.9]} 19. exf5 {[%clk 0:02:01.6]} 19... gxf5
{[%clk 0:01:15.8]} 20. Ne3 {[%clk 0:01:58.5]} 20... Ne7 {[%clk 0:00:28.3]} 21.
Qc2 {[%clk 0:01:48.8]} 21... e4 {[%clk 0:00:28.2]} 22. Rxd8 {[%clk 0:01:45.5]}
22... Qxd8 {[%clk 0:00:26.7]} 23. Rd1 {[%clk 0:01:43.9]} 23... Qc7 {[%clk
0:00:27.3]} 24. Qa4 {[%clk 0:01:34.2]} 24... a6 {[%clk 0:00:22.3]} 25. Rd7
{[%clk 0:01:30.5]} 25... Qe5 {[%clk 0:00:22.3]} 26. Rxb7 {[%clk 0:01:21.1]}
26... Rd8 {[%clk 0:00:11.4]} 27. Rd7 {[%clk 0:01:10.2]} 27... Rb8 {[%clk
0:00:06.6]} 28. b3 {[%clk 0:01:09.1]} 28... h5 {[%clk 0:00:04.1]} 29. Qxa6
{[%clk 0:00:58.4]} 29... f4 {[%clk 0:00:03.7]} 30. Nd5 {[%clk 0:00:52.9]} 30...
Ng6 {[%clk 0:00:03.6]} 31. Qf6 {[%clk 0:00:40]} 31... Re8 {[%clk 0:00:02]} 32.
Rxg7+ {[%clk 0:00:38.3]} 32... Kh6 {[%clk 0:00:02.3]} 33. Qxg6# {[%clk
0:00:37.7]} 1-0

[Event "Late-Titled-Tuesday-Blitz-October-03-2023"]
[Site "Chess.com"]
[Date "2023.10.03"]
[Round "9"]
[White "mfwagnerpeixoto"]
[Black "Langua_Chess"]
[Result "0-1"]
[WhiteElo "2328"]
[BlackElo "2474"]
[TimeControl "180+1"]
[EndTime "15:40:14 PDT"]
[Termination "Langua_Chess won by resignation"]

1. Nf3 {[%clk 0:03:00.9]} 1... d5 {[%clk 0:02:51.6]} 2. g3 {[%clk 0:03:00.5]}
2... Bg4 {[%clk 0:02:45.6]} 3. Bg2 {[%clk 0:03:00.4]} 3... Nd7 {[%clk
0:02:44.2]} 4. O-O {[%clk 0:02:59.9]} 4... e5 {[%clk 0:02:44.3]} 5. d3 {[%clk
0:02:59.9]} 5... Ngf6 {[%clk 0:02:38.5]} 6. Nbd2 {[%clk 0:02:59.4]} 6... Bc5
{[%clk 0:02:26.3]} 7. c3 {[%clk 0:02:55.5]} 7... e4 {[%clk 0:02:19.8]} 8. dxe4
{[%clk 0:02:41.4]} 8... dxe4 {[%clk 0:02:20.7]} 9. Nd4 {[%clk 0:02:38]} 9... e3
{[%clk 0:02:18.8]} 10. fxe3 {[%clk 0:02:36.8]} 10... c6 {[%clk 0:02:13.1]} 11.
Qb3 {[%clk 0:02:18.2]} 11... Rb8 {[%clk 0:01:59.2]} 12. Ne4 {[%clk 0:02:04.2]}
12... O-O {[%clk 0:01:51.7]} 13. Nf5 {[%clk 0:01:45.2]} 13... Nxe4 {[%clk
0:01:38.6]} 14. Bxe4 {[%clk 0:01:42.5]} 14... Bxe2 {[%clk 0:01:18.3]} 15. Rf2
{[%clk 0:01:34.4]} 15... Nf6 {[%clk 0:01:18.3]} 16. Bf3 {[%clk 0:01:06.7]} 16...
Bxf3 {[%clk 0:00:51]} 17. Rxf3 {[%clk 0:01:07.6]} 17... Qd3 {[%clk 0:00:51.1]}
18. Nd4 {[%clk 0:00:57.4]} 18... Rbd8 {[%clk 0:00:27.5]} 19. Qxb7 {[%clk
0:00:30.7]} 19... Ne4 {[%clk 0:00:21]} 20. Qxc6 {[%clk 0:00:22.9]} 20... Bxd4
{[%clk 0:00:17.5]} 21. cxd4 {[%clk 0:00:20.6]} 21... Rc8 {[%clk 0:00:05.3]} 22.
Qb7 {[%clk 0:00:11.1]} 22... Rc2 {[%clk 0:00:05.6]} 23. Rf2 {[%clk 0:00:08.1]}
23... Rxf2 {[%clk 0:00:04.7]} 0-1

[Event "Late-Titled-Tuesday-Blitz-October-03-2023"]
[Site "Chess.com"]
[Date "2023.10.03"]
[Round "9"]
[White "Maestro1986"]
[Black "ameetghasi100"]
[Result "0-1"]
[WhiteElo "2559"]
[BlackElo "2724"]
[TimeControl "180+1"]
[EndTime "15:40:19 PDT"]
[Termination "ameetghasi100 won by resignation"]

1. Nf3 {[%clk 0:02:58.7]} 1... g6 {[%clk 0:03:00.1]} 2. g3 {[%clk 0:02:59]} 2...
Bg7 {[%clk 0:03:01]} 3. Bg2 {[%clk 0:02:59.9]} 3... d6 {[%clk 0:03:01.9]} 4. O-O
{[%clk 0:03:00.7]} 4... Nf6 {[%clk 0:03:02.8]} 5. d4 {[%clk 0:03:01.1]} 5... O-O
{[%clk 0:03:03.7]} 6. h3 {[%clk 0:02:57.7]} 6... c6 {[%clk 0:03:04.6]} 7. c4
{[%clk 0:02:57.3]} 7... Qb6 {[%clk 0:03:03.2]} 8. Nc3 {[%clk 0:02:55.4]} 8...
Be6 {[%clk 0:02:48.9]} 9. b3 {[%clk 0:02:52.3]} 9... d5 {[%clk 0:02:48.6]} 10.
c5 {[%clk 0:02:48.2]} 10... Qa6 {[%clk 0:02:46.5]} 11. Bf4 {[%clk 0:02:40.6]}
11... h6 {[%clk 0:02:42.2]} 12. a4 {[%clk 0:02:33.6]} 12... Nbd7 {[%clk
0:02:29.2]} 13. Nd2 {[%clk 0:02:17.1]} 13... Rfd8 {[%clk 0:01:51.5]} 14. b4
{[%clk 0:02:07.9]} 14... b6 {[%clk 0:01:51.3]} 15. Re1 {[%clk 0:01:22.5]} 15...
bxc5 {[%clk 0:01:50.2]} 16. bxc5 {[%clk 0:01:16.1]} 16... Nh5 {[%clk 0:01:49.9]}
17. e3 {[%clk 0:01:06.7]} 17... Nxf4 {[%clk 0:01:45.2]} 18. gxf4 {[%clk
0:01:04]} 18... Nxc5 {[%clk 0:01:44.2]} 19. Bf1 {[%clk 0:00:55.1]} 19... Qa5
{[%clk 0:01:32]} 20. Rc1 {[%clk 0:00:49.9]} 20... Nd7 {[%clk 0:01:30.6]} 21. Kh2
{[%clk 0:00:27.9]} 21... Rab8 {[%clk 0:01:28.2]} 22. Bd3 {[%clk 0:00:25]} 22...
c5 {[%clk 0:01:22.7]} 23. f5 {[%clk 0:00:18.1]} 23... gxf5 {[%clk 0:01:22.7]}
24. Rg1 {[%clk 0:00:17.3]} 24... cxd4 {[%clk 0:01:07.1]} 25. exd4 {[%clk
0:00:16.9]} 25... Nf6 {[%clk 0:01:00.7]} 26. Nb5 {[%clk 0:00:14.8]} 26... Rbc8
{[%clk 0:00:52]} 27. Rxc8 {[%clk 0:00:08.8]} 27... Rxc8 {[%clk 0:00:52.9]} 28.
Nf3 {[%clk 0:00:09.2]} 28... a6 {[%clk 0:00:48.5]} 29. Na3 {[%clk 0:00:08.4]}
29... Qc7+ {[%clk 0:00:47.8]} 30. Kh1 {[%clk 0:00:08.4]} 30... Qf4 {[%clk
0:00:48.3]} 31. Nc2 {[%clk 0:00:06.9]} 31... Ne4 {[%clk 0:00:44.6]} 32. Qe2
{[%clk 0:00:06.2]} 32... Kh8 {[%clk 0:00:41.9]} 33. Ne3 {[%clk 0:00:05.4]} 33...
Nc3 {[%clk 0:00:40.1]} 34. Nxd5 {[%clk 0:00:01.7]} 34... Bxd5 {[%clk 0:00:38.8]}
0-1

[Event "Late-Titled-Tuesday-Blitz-October-03-2023"]
[Site "Chess.com"]
[Date "2023.10.03"]
[Round "9"]
[White "CarlosjPineror"]
[Black "babero_gordo"]
[Result "1-0"]
[WhiteElo "2519"]
[BlackElo "1982"]
[TimeControl "180+1"]
[EndTime "15:40:21 PDT"]
[Termination "CarlosjPineror won by resignation"]

1. e4 {[%clk 0:03:00.9]} 1... c5 {[%clk 0:02:59.2]} 2. Nf3 {[%clk 0:02:59.4]}
2... e6 {[%clk 0:02:58.5]} 3. d4 {[%clk 0:02:59.3]} 3... cxd4 {[%clk 0:02:58.8]}
4. Nxd4 {[%clk 0:03:00.2]} 4... Nc6 {[%clk 0:02:58.1]} 5. Nb5 {[%clk 0:02:59.7]}
5... d6 {[%clk 0:02:58.5]} 6. c4 {[%clk 0:02:58.5]} 6... a6 {[%clk 0:02:58.6]}
7. N5c3 {[%clk 0:02:56.4]} 7... Nf6 {[%clk 0:02:50]} 8. Be2 {[%clk 0:02:55.5]}
8... Qc7 {[%clk 0:02:40.4]} 9. O-O {[%clk 0:02:53.8]} 9... Be7 {[%clk
0:02:40.5]} 10. Be3 {[%clk 0:02:53.4]} 10... O-O {[%clk 0:02:39.3]} 11. Nd2
{[%clk 0:02:41.5]} 11... Rd8 {[%clk 0:02:26.5]} 12. Rc1 {[%clk 0:02:39.9]} 12...
Qb8 {[%clk 0:02:18.2]} 13. Bb6 {[%clk 0:02:38.3]} 13... Rd7 {[%clk 0:02:16.1]}
14. Qb3 {[%clk 0:02:25.5]} 14... Bd8 {[%clk 0:02:12.1]} 15. Rfd1 {[%clk
0:02:24.2]} 15... Bxb6 {[%clk 0:02:09.2]} 16. Qxb6 {[%clk 0:02:23.8]} 16... Qc7
{[%clk 0:02:06.8]} 17. Na4 {[%clk 0:02:21.9]} 17... Qd8 {[%clk 0:01:38.2]} 18.
Qxd8+ {[%clk 0:02:18.7]} 18... Rxd8 {[%clk 0:01:37.8]} 19. Nb6 {[%clk
0:02:18.7]} 19... Rb8 {[%clk 0:01:38]} 20. f3 {[%clk 0:01:53.9]} 20... Nd4
{[%clk 0:01:37.1]} 21. Kf2 {[%clk 0:01:53.1]} 21... e5 {[%clk 0:01:35.2]} 22.
Nb3 {[%clk 0:01:51.7]} 22... Nxb3 {[%clk 0:01:08.9]} 23. axb3 {[%clk 0:01:52.6]}
23... Be6 {[%clk 0:01:07.1]} 24. Rd2 {[%clk 0:01:51.2]} 24... Ne8 {[%clk
0:01:04.3]} 25. Rcd1 {[%clk 0:01:50]} 25... f5 {[%clk 0:01:03.8]} 26. exf5
{[%clk 0:01:42.6]} 26... Bxf5 {[%clk 0:01:03.5]} 27. b4 {[%clk 0:01:40.7]} 27...
Kf7 {[%clk 0:01:00.8]} 28. b3 {[%clk 0:01:34.1]} 28... Ke7 {[%clk 0:00:44.9]}
29. h4 {[%clk 0:01:33.5]} 29... Nf6 {[%clk 0:00:40.4]} 30. g4 {[%clk 0:01:29.8]}
30... Be6 {[%clk 0:00:39.8]} 31. g5 {[%clk 0:01:19.5]} 31... Nh5 {[%clk
0:00:38.6]} 32. Ke3 {[%clk 0:01:19.1]} 32... Nf4 {[%clk 0:00:36.9]} 33. Bf1
{[%clk 0:01:15.8]} 33... Bh3 {[%clk 0:00:29.5]} 34. Bxh3 {[%clk 0:01:08.9]}
34... Nxh3 {[%clk 0:00:30.4]} 35. Nd5+ {[%clk 0:01:09]} 35... Ke6 {[%clk
0:00:30.5]} 36. Rh1 {[%clk 0:01:09]} 36... Nf4 {[%clk 0:00:26.4]} 37. Nxf4+
{[%clk 0:01:09.3]} 37... exf4+ {[%clk 0:00:27.1]} 38. Kxf4 {[%clk 0:01:09.2]}
38... Rf8+ {[%clk 0:00:28]} 39. Kg4 {[%clk 0:01:09.4]} 39... Rbe8 {[%clk
0:00:24.8]} 40. Re1+ {[%clk 0:01:09.2]} 40... Kd7 {[%clk 0:00:24.8]} 41. Rde2
{[%clk 0:01:09.6]} 41... Rxe2 {[%clk 0:00:21]} 42. Rxe2 {[%clk 0:01:10.5]} 42...
g6 {[%clk 0:00:21.2]} 43. f4 {[%clk 0:01:09.2]} 43... Rf5 {[%clk 0:00:21.1]} 44.
h5 {[%clk 0:01:09]} 44... a5 {[%clk 0:00:20.2]} 45. b5 {[%clk 0:01:07.1]} 45...
Kc7 {[%clk 0:00:19.3]} 46. hxg6 {[%clk 0:01:05.9]} 46... hxg6 {[%clk 0:00:19.2]}
47. Re6 {[%clk 0:01:06.3]} 47... Rf7 {[%clk 0:00:13.9]} 48. Rxg6 {[%clk
0:01:06.3]} 48... Re7 {[%clk 0:00:14.4]} 49. Rf6 {[%clk 0:01:01.4]} 49... Re3
{[%clk 0:00:14.3]} 50. g6 {[%clk 0:01:01.3]} 50... Rxb3 {[%clk 0:00:14.4]} 51.
g7 {[%clk 0:01:01.7]} 51... Rb1 {[%clk 0:00:14.7]} 52. Rg6 {[%clk 0:01:01.9]}
1-0

[Event "Late-Titled-Tuesday-Blitz-October-03-2023"]
[Site "Chess.com"]
[Date "2023.10.03"]
[Round "9"]
[White "JohnWhite1952"]
[Black "MBA_CHESS_2021"]
[Result "0-1"]
[WhiteElo "2061"]
[BlackElo "2243"]
[TimeControl "180+1"]
[EndTime "15:40:27 PDT"]
[Termination "MBA_CHESS_2021 won on time"]

1. e4 {[%clk 0:02:57]} 1... g6 {[%clk 0:02:59.7]} 2. d4 {[%clk 0:02:56.1]} 2...
Bg7 {[%clk 0:03:00.3]} 3. Nf3 {[%clk 0:02:56.1]} 3... c5 {[%clk 0:03:00.2]} 4.
Bc4 {[%clk 0:02:47.4]} 4... cxd4 {[%clk 0:02:57.7]} 5. Nxd4 {[%clk 0:02:46.7]}
5... Nc6 {[%clk 0:02:51.5]} 6. Be3 {[%clk 0:02:42]} 6... d6 {[%clk 0:02:40.7]}
7. Nc3 {[%clk 0:02:37]} 7... Nf6 {[%clk 0:02:39.6]} 8. f3 {[%clk 0:02:31.4]}
8... O-O {[%clk 0:02:38.7]} 9. O-O {[%clk 0:02:24.8]} 9... Bd7 {[%clk 0:02:33]}
10. Qd2 {[%clk 0:02:23.1]} 10... Rc8 {[%clk 0:02:31.1]} 11. Rfd1 {[%clk
0:02:20.7]} 11... Nxd4 {[%clk 0:02:27.2]} 12. Qxd4 {[%clk 0:02:15.6]} 12... Ng4
{[%clk 0:02:24.2]} 13. Qd3 {[%clk 0:01:15.4]} 13... Nxe3 {[%clk 0:02:22]} 14.
Qxe3 {[%clk 0:01:14.9]} 14... Rxc4 {[%clk 0:02:20.5]} 15. Nd5 {[%clk 0:01:10.6]}
15... Bxb2 {[%clk 0:01:59.2]} 16. Rab1 {[%clk 0:01:09.5]} 16... Bg7 {[%clk
0:01:35.2]} 17. Rxb7 {[%clk 0:01:06.6]} 17... Rxc2 {[%clk 0:01:19.8]} 18. Qxa7
{[%clk 0:01:00.6]} 18... Be6 {[%clk 0:01:13.5]} 19. Nxe7+ {[%clk 0:00:57.2]}
19... Kh8 {[%clk 0:01:12.8]} 20. Rdb1 {[%clk 0:00:46.6]} 20... Rxa2 {[%clk
0:01:04.3]} 21. Qe3 {[%clk 0:00:36.7]} 21... Qa8 {[%clk 0:00:26.2]} 22. Nc6
{[%clk 0:00:29.4]} 22... Ra1 {[%clk 0:00:23.3]} 23. Qd3 {[%clk 0:00:20.4]} 23...
Qxb7 {[%clk 0:00:20.8]} 24. Rxa1 {[%clk 0:00:18.5]} 24... Bxa1 {[%clk
0:00:20.5]} 25. Qxd6 {[%clk 0:00:13.3]} 25... Rc8 {[%clk 0:00:18.4]} 26. Ne7
{[%clk 0:00:03.1]} 26... Qa7+ {[%clk 0:00:15.2]} 0-1

[Event "Late-Titled-Tuesday-Blitz-October-03-2023"]
[Site "Chess.com"]
[Date "2023.10.03"]
[Round "9"]
[White "KNVB"]
[Black "The_Straightforward_Rook"]
[Result "1-0"]
[WhiteElo "2691"]
[BlackElo "2554"]
[TimeControl "180+1"]
[EndTime "15:40:30 PDT"]
[Termination "KNVB won on time"]

1. d4 {[%clk 0:03:00.9]} 1... Nf6 {[%clk 0:02:59.4]} 2. Nc3 {[%clk 0:02:59.2]}
2... d5 {[%clk 0:02:58.3]} 3. Bf4 {[%clk 0:02:58.6]} 3... e6 {[%clk 0:02:57.3]}
4. Nb5 {[%clk 0:02:54.1]} 4... Na6 {[%clk 0:02:56.9]} 5. e3 {[%clk 0:02:52.6]}
5... Be7 {[%clk 0:02:55.4]} 6. Nf3 {[%clk 0:02:08.2]} 6... O-O {[%clk
0:02:53.7]} 7. Bd3 {[%clk 0:01:43.7]} 7... c5 {[%clk 0:02:49.7]} 8. a4 {[%clk
0:01:30.8]} 8... Bd7 {[%clk 0:02:38.3]} 9. c3 {[%clk 0:01:30.4]} 9... Be8 {[%clk
0:02:14.6]} 10. h3 {[%clk 0:00:59.7]} 10... Ne4 {[%clk 0:02:01.3]} 11. O-O
{[%clk 0:00:58]} 11... f5 {[%clk 0:01:49.1]} 12. Ne5 {[%clk 0:00:44.8]} 12... c4
{[%clk 0:01:40.4]} 13. Bxe4 {[%clk 0:00:22.5]} 13... fxe4 {[%clk 0:01:41.3]} 14.
Qg4 {[%clk 0:00:23]} 14... Rf5 {[%clk 0:01:39.4]} 15. f3 {[%clk 0:00:17.4]}
15... Bh5 {[%clk 0:01:33.1]} 16. Qg3 {[%clk 0:00:17]} 16... exf3 {[%clk
0:01:12.3]} 17. Nxf3 {[%clk 0:00:14.1]} 17... Qf8 {[%clk 0:01:02.9]} 18. Qh2
{[%clk 0:00:06]} 18... Bxf3 {[%clk 0:00:47.2]} 19. Rxf3 {[%clk 0:00:06.9]} 19...
h6 {[%clk 0:00:46.7]} 20. Raf1 {[%clk 0:00:04.8]} 20... Kh7 {[%clk 0:00:43.9]}
21. Be5 {[%clk 0:00:01.8]} 21... Qf7 {[%clk 0:00:38.6]} 22. Qg3 {[%clk
0:00:01.6]} 22... g6 {[%clk 0:00:25.6]} 23. Rxf5 {[%clk 0:00:01.6]} 23... gxf5
{[%clk 0:00:23.7]} 24. Qf3 {[%clk 0:00:02.2]} 24... Rg8 {[%clk 0:00:20]} 25. e4
{[%clk 0:00:02.2]} 25... dxe4 {[%clk 0:00:17.3]} 26. Qxe4 {[%clk 0:00:03]} 26...
Qg6 {[%clk 0:00:11.1]} 27. Qxb7 {[%clk 0:00:02.8]} 27... Qf7 {[%clk 0:00:06.9]}
28. Qxa6 {[%clk 0:00:02.5]} 28... Qg6 {[%clk 0:00:02.1]} 29. Qb7 {[%clk
0:00:03]} 1-0